fUSD/lending_fUSD_20251112
["ID","MTS","AMOUNT","RATE_DAILY","PERIOD"]
[393677495,1762919431686,-15497.45584091,0.0003617,2]
[393677496,1762919431697,-240.16415909,0.0003617,2]
[393677497,1762919431707,-1000.0,0.00036233,30]
[393677498,1762919431717,-1000.0,0.00036233,30]
[393677499,1762919431727,-159.9155242,0.00036483,2]
[393677500,1762919431736,-151.0,0.000365,2]
[393677502,1762919431746,-151.0,0.000365,2]
[393677504,1762919431755,-151.0,0.000365,2]
[393677505,1762919431764,-151.0,0.000365,2]
[393677506,1762919431774,-151.0,0.000365,2]
[393677507,1762919431783,-151.0,0.000365,2]
[393677508,1762919431792,-151.0,0.000365,2]
[393677509,1762919431802,-151.0,0.000365,2]
[393677510,1762919431811,-151.0,0.000365,2]
[393677511,1762919431821,-151.0,0.000365,2]
[393677512,1762919431830,-151.0,0.000365,2]
[393677513,1762919431840,-151.0,0.000365,2]
[393677514,1762919431850,-151.0,0.000365,2]
[393677515,1762919431859,-151.0,0.000365,2]
[393677516,1762919431869,-151.0,0.000365,2]
[393677517,1762919431882,-151.0,0.000365,2]
[393677518,1762919431892,-151.0,0.000365,2]
[393677519,1762919431904,-151.0,0.000365,2]
[393677520,1762919431913,-151.0,0.000365,2]
[393677521,1762919431922,-166.03585339,0.000365,2]
[393677522,1762919431932,-492.88692891,0.00036521,2]
[393677523,1762919431941,-500.0,0.00036521,2]
[393677524,1762919431951,-500.0,0.00036521,15]
[393677525,1762919431960,-500.0,0.00036521,15]
[393677526,1762919431970,-500.0,0.00036521,2]
[393677527,1762919431979,-500.0,0.00036521,15]
[393677528,1762919431988,-591.31235366,0.00036521,2]
[393677529,1762919431997,-500.0,0.00036521,15]
[393677530,1762919432006,-500.0,0.00036521,15]
[393677531,1762919432015,-500.0,0.00036521,15]
[393677532,1762919432024,-500.0,0.00036521,15]
[393677533,1762919432034,-500.0,0.00036521,15]
[393677534,1762919432043,-500.0,0.00036521,15]
[393677535,1762919432052,-500.0,0.00036521,15]
[393677536,1762919432062,-500.0,0.00036521,15]
[393677537,1762919432071,-335.52359966,0.00036521,15]
[393677538,1762919432084,-382.21938512,0.00036521,15]
[393677539,1762919432094,-23692.84461717,0.00036522,2]
[393677540,1762919432114,-370.58127462,0.00036522,2]
[393677542,1762919437429,-300.6,0.00036522,2]
[393677543,1762919437536,-2737.53953495,0.00036522,2]
[393677544,1762919437591,-392898.43457326,0.00036522,2]
[393677545,1762919437602,-55545.91495055,0.00036583,2]
[393677546,1762919437612,-342.04,0.00036623,30]
[393677547,1762919437622,-166.66,0.00036681,2]
[393677548,1762919437632,-2506.96,0.00036985,2]
[393677549,1762919437642,-925.44,0.00037028,2]
[393677551,1762919437651,-183.48625345,0.000372,120]
[393677553,1762919437663,-203.34167533,0.00037223,2]
[393677555,1762919437673,-166.66,0.00037891,2]
[393677557,1762919437683,-500.0,0.00038356,7]
[393677559,1762919437692,-155.54364503,0.00038356,7]
[393677561,1762919437702,-500.0,0.00038356,2]
[393677563,1762919437711,-2414.01,0.00038356,2]
[393677565,1762919437720,-500.0,0.00038356,2]
[393677567,1762919437730,-500.0,0.00038356,7]
[393677569,1762919437740,-500.0,0.00038356,7]
[393677571,1762919437750,-620.07,0.00038356,20]
[393677573,1762919437760,-620.07,0.00038356,20]
[393677575,1762919437769,-500.0,0.00038356,7]
[393677577,1762919437778,-500.0,0.00038356,7]
[393677579,1762919437787,-500.0,0.00038356,30]
[393677581,1762919437797,-500.0,0.00038619,7]
[393677583,1762919437806,-500.0,0.0003863,30]
[393677585,1762919437815,-500.0,0.00038904,30]
[393677587,1762919437825,-166.66,0.00039102,2]
[393677589,1762919437834,-500.0,0.00039178,30]
[393677592,1762919437843,-300.0,0.00039186,2]
[393677594,1762919437853,-1007.0,0.000392,2]
[393677596,1762919437862,-211.8639712,0.00039248,11]
[393677618,1762919438088,-500.0,0.00039452,30]
[393677619,1762919438102,-286.63320609,0.00039595,2]
[393677620,1762919438113,-3199.8296396,0.000396,30]
[393677621,1762919438124,-153.0,0.00039689,120]
[393677622,1762919438135,-153.0,0.00039689,120]
[393677623,1762919438145,-153.0,0.00039689,120]
[393677624,1762919438155,-153.0,0.00039689,120]
[393677625,1762919438165,-153.0,0.00039691,120]
[393677626,1762919438175,-153.0,0.00039691,120]
[393677627,1762919438186,-153.0,0.00039691,120]
[393677628,1762919438195,-153.0,0.00039691,120]
[393677629,1762919438205,-153.0,0.00039697,120]
[393677630,1762919438215,-153.0,0.00039697,120]
[393677631,1762919438225,-153.0,0.00039697,120]
[393677632,1762919438236,-153.0,0.00039697,120]
[393677633,1762919438245,-153.0,0.00039697,120]
[393677634,1762919438255,-153.0,0.00039698,120]
[393677635,1762919438266,-153.0,0.00039698,120]
[393677636,1762919438276,-153.0,0.00039698,120]
[393677637,1762919438286,-153.0,0.00039698,120]
[393677638,1762919438296,-153.0,0.00039698,120]
[393677639,1762919438306,-500.0,0.00039726,30]
[393677640,1762919438315,-168.0,0.00039738,2]
[393677641,1762919438325,-200.0794546,0.00039792,20]
[393677642,1762919438335,-167.85,0.00039848,2]
[393677643,1762919438349,-1000.0,0.00039851,2]
[393677644,1762919438359,-500.0,0.00039851,7]
[393677645,1762919438369,-500.0,0.00039851,2]
[393677646,1762919438379,-1290.86,0.00039851,2]
[393677647,1762919438389,-1000.0,0.00039861,2]
[393677648,1762919438399,-500.0,0.00039861,7]
[393677649,1762919438409,-500.0,0.00039861,2]
[393677650,1762919438419,-1290.86,0.00039861,2]
[393677651,1762919438429,-168.0,0.0003989,2]
[393677652,1762919438439,-500.0,0.00039911,2]
[393677653,1762919438448,-2414.01,0.00039911,2]
[393677654,1762919438459,-500.0,0.00039911,2]
[393677655,1762919438468,-5000.0,0.00039912,30]
[393677656,1762919438478,-500.0,0.0004,30]
[393677657,1762919438489,-500.0,0.00040002,7]
[393677658,1762919438498,-620.07,0.00040002,20]
[393677659,1762919438508,-181.62991242,0.00040003,7]
[393677660,1762919438523,-181.62991242,0.00040003,7]
[393677661,1762919438533,-1000.0,0.00040007,2]
[393677662,1762919438549,-500.0,0.00040007,7]
[393677663,1762919438559,-500.0,0.00040007,2]
[393677664,1762919438569,-1290.86,0.00040007,2]
[393677665,1762919438579,-1693.21926,0.00040008,2]
[393677666,1762919438589,-1000.0,0.00040012,2]
[393677667,1762919438599,-1000.0,0.00040012,2]
[393677668,1762919438610,-1000.0,0.00040012,2]
[393677669,1762919438619,-1000.0,0.00040012,2]
[393677670,1762919438629,-1000.0,0.00040012,2]
[393677671,1762919438639,-1000.0,0.00040012,2]
[393677672,1762919438649,-1000.0,0.00040012,2]
[393677673,1762919438658,-1000.0,0.00040012,2]
[393677674,1762919438668,-1000.0,0.00040012,2]
[393677675,1762919438678,-1000.0,0.00040012,2]
[393677676,1762919438688,-1024.02196591,0.00040012,2]
[393677677,1762919438698,-30019.0113536,0.00040012,2]
[393677678,1762919438707,-500.0,0.00040012,7]
[393677679,1762919438718,-500.0,0.00040012,7]
[393677680,1762919438728,-500.0,0.00040012,7]
[393677681,1762919438738,-500.0,0.00040012,7]
[393677682,1762919438751,-500.0,0.00040012,7]
[393677683,1762919438761,-500.0,0.00040012,7]
[393677684,1762919438771,-500.0,0.00040012,7]
[393677685,1762919438782,-500.0,0.00040012,7]
[393677686,1762919438792,-221.68916734,0.00040012,7]
[393677687,1762919438802,-500.0,0.00040012,2]
[393677688,1762919438812,-500.0,0.00040012,2]
[393677689,1762919438822,-500.0,0.00040012,2]
[393677690,1762919438832,-500.0,0.00040012,2]
[393677691,1762919438842,-500.0,0.00040012,2]
[393677692,1762919438852,-500.0,0.00040012,2]
[393677693,1762919438862,-500.0,0.00040012,2]
[393677694,1762919438871,-500.0,0.00040012,2]
[393677695,1762919438881,-500.0,0.00040012,2]
[393677696,1762919438891,-313.36531007,0.00040012,2]
[393677697,1762919438901,-1290.86,0.00040012,2]
[393677698,1762919438912,-1290.86,0.00040012,2]
[393677699,1762919438922,-1290.86,0.00040012,2]
[393677700,1762919438932,-1290.86,0.00040012,2]
[393677701,1762919438946,-1290.86,0.00040012,2]
[393677702,1762919438956,-1290.86,0.00040012,2]
[393677703,1762919438966,-1290.86,0.00040012,2]
[393677704,1762919438975,-1290.86,0.00040012,2]
[393677705,1762919438986,-1290.86,0.00040012,2]
[393677706,1762919438996,-1290.86,0.00040012,2]
[393677707,1762919439006,-1290.86,0.00040012,2]
[393677708,1762919439015,-1290.86,0.00040012,2]
[393677709,1762919439025,-1290.86,0.00040012,2]
[393677710,1762919439035,-1290.86,0.00040012,2]
[393677711,1762919439044,-1290.86,0.00040012,2]
[393677712,1762919439053,-1290.86,0.00040012,2]
[393677713,1762919439063,-1290.86,0.00040012,2]
[393677714,1762919439073,-1290.86,0.00040012,2]
[393677715,1762919439082,-1290.86,0.00040012,2]
[393677716,1762919439092,-1290.86,0.00040012,2]
[393677717,1762919439102,-1290.94386697,0.00040012,2]
[393677718,1762919439112,-1934.003311,0.00040012,2]
[393677719,1762919439121,-500.0,0.00040012,2]
[393677720,1762919439135,-500.0,0.00040012,2]
[393677721,1762919439144,-500.0,0.00040012,2]
[393677722,1762919439154,-500.0,0.00040012,2]
[393677723,1762919439163,-500.0,0.00040012,2]
[393677724,1762919439173,-500.0,0.00040012,2]
[393677725,1762919439182,-500.0,0.00040012,2]
[393677726,1762919439192,-2414.01,0.00040012,2]
[393677727,1762919439202,-2414.01,0.00040012,2]
[393677728,1762919439212,-2414.01,0.00040012,2]
[393677729,1762919439221,-2414.01,0.00040012,2]
[393677730,1762919439231,-2414.01,0.00040012,2]
[393677731,1762919439242,-2414.01,0.00040012,2]
[393677732,1762919439252,-2414.01,0.00040012,2]
[393677733,1762919439265,-3267.660502,0.00040012,2]
[393677734,1762919439276,-500.0,0.00040012,2]
[393677735,1762919439286,-500.0,0.00040012,2]
[393677736,1762919439295,-500.0,0.00040012,2]
[393677737,1762919439306,-500.0,0.00040012,2]
[393677738,1762919439315,-197.468356,0.00040012,2]
[393677739,1762919439325,-174.27785416,0.00040012,120]
[393677741,1762919439335,-151.0,0.00040012,120]
[393677743,1762919439344,-153.91562882,0.00040012,120]
[393677744,1762919439354,-500.0,0.00040012,7]
[393677745,1762919439363,-500.0,0.00040012,7]
[393677746,1762919439373,-500.0,0.00040012,7]
[393677747,1762919439383,-500.0,0.00040012,7]
[393677748,1762919439392,-500.0,0.00040012,120]
[393677749,1762919439402,-500.0,0.00040012,7]
[393677750,1762919439412,-500.0,0.00040012,7]
[393677751,1762919439421,-500.0,0.00040012,7]
[393677752,1762919439431,-518.5,0.00040012,120]
[393677753,1762919439440,-500.0,0.00040012,7]
[393677754,1762919439450,-537.6845,0.00040012,120]
[393677755,1762919439460,-567.74105854,0.00040012,120]
[393677756,1762919439469,-250.0,0.00040012,120]
[393677757,1762919439479,-250.0,0.00040012,120]
[393677758,1762919439489,-250.0,0.00040012,120]
[393677759,1762919439499,-250.0,0.00040012,120]
[393677760,1762919439508,-250.0,0.00040012,120]
[393677761,1762919439519,-269.32486268,0.00040012,120]
[393677762,1762919439529,-620.07,0.00040012,20]
[393677763,1762919439539,-620.07,0.00040012,20]
[393677764,1762919439549,-620.07,0.00040012,20]
[393677765,1762919439559,-620.07,0.00040012,20]
[393677766,1762919439570,-620.07,0.00040012,20]
[393677767,1762919439579,-620.07,0.00040012,20]
[393677768,1762919439591,-620.07,0.00040012,20]
[393677769,1762919439600,-620.07,0.00040012,20]
[393677770,1762919439610,-1680.8293289,0.00040012,2]
[393677771,1762919439620,-679.47900327,0.00040012,120]
[393677772,1762919439630,-500.0,0.00040012,7]
[393677773,1762919439640,-500.0,0.00040012,7]
[393677774,1762919439650,-500.0,0.00040012,7]
[393677775,1762919439664,-500.0,0.00040012,7]
[393677776,1762919439674,-500.0,0.00040012,7]
[393677777,1762919439683,-500.0,0.00040012,7]
[393677778,1762919439694,-500.0,0.00040012,7]
[393677779,1762919439704,-500.0,0.00040012,7]
[393677780,1762919439714,-500.0,0.00040012,7]
[393677781,1762919439724,-500.0,0.00040012,7]
[393677782,1762919439733,-500.0,0.00040012,7]
[393677783,1762919439743,-500.0,0.00040012,7]
[393677784,1762919439753,-500.0,0.00040012,7]
[393677785,1762919439763,-500.0,0.00040012,7]
[393677786,1762919439773,-500.0,0.00040012,7]
[393677787,1762919439782,-500.0,0.00040012,7]
[393677788,1762919439792,-500.0,0.00040012,7]
[393677789,1762919439802,-500.0,0.00040012,7]
[393677790,1762919439813,-289.16408937,0.00040012,7]
[393677792,1762919439823,-3081.0,0.00040013,5]
[393677793,1762919439832,-70609.40017333,0.00040013,29]
[393677795,1762919439842,-696.99,0.00040013,30]
[393677796,1762919439852,-1756610.39049189,0.00040013,120]
[393677798,1762919439862,-478.56668374,0.00040013,120]
[393677799,1762919439872,-1481410.50666357,0.00040013,120]
[393677809,1762919440029,-1034.6,0.00040013,120]
[393677811,1762919440042,-2896.80564069,0.00040013,120]
[393677814,1762919440052,-62639.99813629,0.00040013,120]
[393677816,1762919440063,-72095.69621341,0.00040013,120]
[393677834,1762919442636,-151.95087809,0.00036483,2]
[393677835,1762919442646,-468.50016433,0.00040013,120]
[393677843,1762919446045,-648.39151107,0.00036521,15]
[393677844,1762919446055,-176.81248374,0.00036521,2]
[393677845,1762919446064,-151.95087809,0.00036864,2]
[393677846,1762919446074,-1541.7301671,0.00040013,120]
[393677851,1762919578286,-180.50301936,0.00032,120]
[393677852,1762919578323,-229.76508258,0.00032,120]
[393677853,1762919578357,-62.19374695,0.00032,120]
[393677862,1762920150756,167.0,0.00029987,120]
[393677875,1762920631617,-366.13000001,0.00027,2]
[393677876,1762920631628,-688.11999999,0.00027,2]
[393677877,1762920631637,-197.75414764,0.0002878,2]
[393677878,1762920631647,-318.75591675,0.0002888,15]
[393677879,1762920631785,-658.19883048,0.0002888,15]
[393677880,1762920631796,-124.39750415,0.0002888,15]
[393677881,1762920631806,-187.40239261,0.00030037,2]
[393677882,1762920631815,-298.22613208,0.00030137,2]
[393677883,1762920631825,-298.22613208,0.00031311,17]
[393677884,1762920631835,-190.73709975,0.0003137,5]
[393677886,1762920631844,-240.19690141,0.00031999,30]
[393677888,1762920631854,-400.0,0.00031999,2]
[393677890,1762920631863,-114.78394728,0.00032,120]
[393677892,1762920631873,-232.12158405,0.00032,120]
[393677894,1762920631882,-14.32557746,0.00032,120]
[393677896,1762920631894,-219.5814137,0.00032,120]
[393677898,1762920631903,-124.65039978,0.00032,120]
[393677901,1762920631915,-46.06164133,0.00032,120]
[393677903,1762920631924,-407.39078463,0.00032,120]
[393677905,1762920631940,-151.52835498,0.00032,120]
[393677907,1762920631950,-195.16066104,0.00032,120]
[393677909,1762920631959,-298.22613208,0.00032485,32]
[393677911,1762920631969,-155.66092611,0.00032644,7]
[393677913,1762920631978,-5.06792579,0.00033,120]
[393678086,1762920637570,-500.0,0.00033,120]
[393678087,1762920637625,-53.85121382,0.00033,120]
[393678088,1762920637635,-195.16066104,0.00033,120]
[393678089,1762920637645,-152.0,0.0003313,3]
[393678090,1762920637654,-152.0,0.00033453,4]
[393678091,1762920637664,-298.22613208,0.00033659,48]
[393678092,1762920637673,-152.0,0.00033776,5]
[393678093,1762920637683,-558.91913961,0.000339,120]
[393678094,1762920637692,-195.16066104,0.000339,120]
[393678095,1762920637702,-152.0,0.00034099,6]
[393678096,1762920637711,-520.0,0.00034417,2]
[393678097,1762920637721,-152.0,0.00034422,7]
[393678098,1762920637730,-205.29347722,0.00034534,120]
[393678099,1762920637739,-1835.979331,0.00034571,2]
[393678100,1762920637749,-152.0,0.00034745,8]
[393678101,1762920637759,-298.22613208,0.00034834,63]
[393678102,1762920637768,-558.91913961,0.00035,120]
[393678103,1762920637778,-195.16066104,0.00035,120]
[393678104,1762920637788,-152.0,0.00035068,9]
[393678105,1762920637797,-152.0,0.00035392,10]
[393678106,1762920637807,-152.0,0.00035715,11]
[393678107,1762920637816,-558.91913961,0.00036,120]
[393678108,1762920637826,-195.16066104,0.00036,120]
[393678109,1762920637835,-788.446,0.00036,43]
[393678111,1762920637844,-298.22613208,0.00036008,79]
[393678113,1762920637854,-152.0,0.00036038,12]
[393678115,1762920637863,-1000.0,0.00036232,30]
[393678117,1762920637872,-1000.0,0.00036232,30]
[393678119,1762920637881,-1565.23405238,0.00036232,30]
[393678121,1762920637890,-1129.814822,0.00036232,30]
[393678123,1762920637900,-1162.44669703,0.00036232,30]
[393678125,1762920637909,-200.0,0.0003626,2]
[393678126,1762920637918,-600.0,0.00036359,2]
[393678128,1762920637928,-152.0,0.00036361,13]
[393678130,1762920637937,-152.0,0.00036684,14]
[393678132,1762920637947,-1000.0,0.00036771,2]
[393678135,1762920637964,-500.0,0.00036844,30]
[393678137,1762920637974,-195.607,0.00036888,7]
[393678139,1762920637984,-152.0,0.00037007,15]
[393678140,1762920637994,-594.00428329,0.00037042,30]
[393678142,1762920638003,-298.22613208,0.00037182,94]
[393678145,1762920638013,-152.0,0.0003733,16]
[393678146,1762920638022,-159.81,0.00037508,60]
[393678148,1762920638034,-222.50174316,0.00037525,7]
[393678150,1762920638044,-500.0,0.00037558,30]
[393678152,1762920638054,-516.04162998,0.00037603,30]
[393678154,1762920638063,-159.81,0.00037608,60]
[393678156,1762920638073,-152.0,0.00037653,17]
[393678158,1762920638083,-5000.0,0.00037665,2]
[393678160,1762920638093,-159.81,0.00037708,60]
[393678163,1762920638104,-600.0,0.00037722,2]
[393678164,1762920638115,-159.81,0.00037808,60]
[393678167,1762920638124,-159.81,0.00037908,60]
[393678168,1762920638134,-152.0,0.00037976,18]
[393678170,1762920638143,-160.0,0.00038,5]
[393678172,1762920638153,-288.0,0.00038,30]
[393678174,1762920638163,-159.81,0.00038008,60]
[393678176,1762920638172,-500.0,0.00038046,30]
[393678194,1762920638334,-2012.35966734,0.000381,33]
[393678196,1762920638344,-159.81,0.00038108,60]
[393678198,1762920638354,-205.29347722,0.00038187,120]
[393678200,1762920638363,-478.56668374,0.00038208,2]
[393678202,1762920638373,-159.81,0.00038208,60]
[393678204,1762920638382,-152.09282614,0.00038247,30]
[393678206,1762920638391,-152.0,0.00038299,19]
[393678208,1762920638401,-159.81,0.00038308,60]
[393678210,1762920638411,-298.22613208,0.00038356,110]
[393678212,1762920638420,-527.29,0.00038356,30]
[393678214,1762920638430,-250.0,0.00038356,2]
[393678216,1762920638439,-159.81,0.00038408,120]
[393678218,1762920638448,-152.09282614,0.00038466,30]
[393678220,1762920638458,-159.81,0.00038508,120]
[393678222,1762920638467,-159.81,0.00038608,120]
[393678224,1762920638477,-500.0,0.00038619,7]
[393678226,1762920638487,-500.0,0.00038619,7]
[393678228,1762920638496,-500.0,0.00038619,7]
[393678230,1762920638506,-152.0,0.00038622,20]
[393678232,1762920638515,-288.0,0.0003863,90]
[393678234,1762920638525,-152.09282614,0.00038685,30]
[393678236,1762920638535,-150.8672941,0.00038685,30]
[393678238,1762920638545,-159.93134366,0.00038708,120]
[393678239,1762920638554,-181.4484377,0.00038778,20]
[393678240,1762920638564,-500.0,0.00038885,30]
[393678241,1762920638574,-1760.4633,0.00038888,30]
[393678242,1762920638585,-152.09282614,0.00038904,30]
[393678243,1762920638595,-500.0,0.00038905,30]
[393678244,1762920638603,-187.40239261,0.00038936,2]
[393678245,1762920638613,-152.0,0.00038945,21]
[393678246,1762920638622,-160.723847,0.0003897,3]
[393678247,1762920638631,-156.205079,0.0003897,3]
[393678248,1762920638640,-500.0,0.00038973,5]
[393678249,1762920638651,-75097.8019514,0.00039,2]
[393678250,1762920638661,-1573.246792,0.00039,32]
[393678251,1762920638671,-1350.19,0.00039036,120]
[393678252,1762920638681,-600.0,0.00039086,2]
[393678253,1762920638691,-152.09282614,0.00039096,30]
[393678254,1762920638701,-150.8672941,0.00039096,30]
[393678255,1762920638710,-500.0,0.0003926,30]
[393678256,1762920638720,-328.69227123,0.0003926,30]
[393678257,1762920638730,-152.0,0.00039268,22]
[393678258,1762920638739,-168.0,0.0003927,7]
[393678259,1762920638748,-152.09282614,0.00039315,30]
[393678260,1762920638758,-500.0,0.00039441,7]
[393678261,1762920638767,-232.3,0.00039496,60]
[393678262,1762920638777,-1500.0,0.000395,32]
[393678263,1762920638787,-1000.0,0.00039521,5]
[393678264,1762920638797,-152.09282614,0.00039534,30]
[393678265,1762920638806,-150.8672941,0.00039534,30]
[393678266,1762920638816,-201.0,0.00039546,120]
[393678267,1762920638825,-183.4994872,0.00039567,14]
[393678268,1762920638835,-152.0,0.00039591,23]
[393678269,1762920638845,-200.0,0.00039692,20]
[393678270,1762920638856,-1000.0,0.000397,2]
[393678271,1762920638866,-153.0,0.0003972,120]
[393678272,1762920638876,-153.0,0.0003972,120]
[393678273,1762920638886,-153.0,0.00039721,120]
[393678274,1762920638895,-153.0,0.00039721,120]
[393678275,1762920638905,-156.205079,0.00039723,2]
[393678276,1762920638915,-152.09282614,0.00039753,30]
[393678277,1762920638925,-213.78010455,0.00039793,120]
[393678278,1762920638936,-1839.18,0.000398,14]
[393678279,1762920638946,-151.95087809,0.000398,2]
[393678280,1762920638956,-211.8639712,0.00039803,12]
[393678281,1762920638966,-151.95087809,0.00039834,15]
[393678282,1762920638975,-151.95087809,0.00039867,15]
[393678283,1762920638985,-601.49541916,0.00039881,2]
[393678284,1762920638995,-58328.9754777,0.00039893,4]
[393678285,1762920639005,-353.56871677,0.00039893,4]
[393678286,1762920639018,-163.52,0.00039893,2]
[393678287,1762920639034,-2000.0,0.000399,120]
[393678288,1762920639043,-2000.0,0.000399,120]
[393678289,1762920639053,-2000.0,0.000399,120]
[393678290,1762920639064,-2000.0,0.000399,120]
[393678291,1762920639074,-2000.0,0.000399,120]
[393678292,1762920639084,-353.56871677,0.00039901,4]
[393678293,1762920639094,-500.0,0.00039901,20]
[393678294,1762920639104,-500.0,0.00039901,20]
[393678295,1762920639116,-500.0,0.00039901,20]
[393678296,1762920639125,-500.0,0.00039901,20]
[393678297,1762920639134,-500.0,0.00039901,20]
[393678298,1762920639144,-500.0,0.00039901,20]
[393678299,1762920639154,-500.0,0.00039901,20]
[393678300,1762920639163,-500.0,0.00039901,20]
[393678301,1762920639173,-500.0,0.00039901,20]
[393678302,1762920639183,-500.0,0.00039901,20]
[393678303,1762920639192,-500.0,0.00039901,20]
[393678304,1762920639202,-500.0,0.00039901,20]
[393678305,1762920639212,-500.0,0.00039901,20]
[393678306,1762920639222,-567.67,0.00039901,20]
[393678307,1762920639231,-500.0,0.00039901,20]
[393678308,1762920639241,-500.0,0.00039901,20]
[393678309,1762920639251,-500.0,0.00039901,20]
[393678310,1762920639262,-500.0,0.00039901,20]
[393678311,1762920639272,-500.0,0.00039901,20]
[393678312,1762920639282,-500.0,0.00039901,20]
[393678313,1762920639291,-398.37340109,0.00039901,20]
[393678314,1762920639301,-500.0,0.00039901,20]
[393678315,1762920639312,-500.0,0.00039901,20]
[393678316,1762920639322,-500.0,0.00039901,20]
[393678317,1762920639332,-500.0,0.00039901,20]
[393678318,1762920639341,-500.0,0.00039901,20]
[393678319,1762920639351,-500.0,0.00039901,20]
[393678320,1762920639361,-500.0,0.00039901,20]
[393678321,1762920639370,-500.0,0.00039901,20]
[393678322,1762920639380,-500.0,0.00039901,20]
[393678323,1762920639389,-500.0,0.00039901,20]
[393678324,1762920639399,-500.0,0.00039901,20]
[393678325,1762920639408,-500.0,0.00039901,20]
[393678326,1762920639418,-500.0,0.00039901,20]
[393678328,1762920639427,-568.17,0.00039901,20]
[393678329,1762920639436,-500.0,0.00039901,20]
[393678330,1762920639446,-500.0,0.00039901,20]
[393678331,1762920639455,-500.0,0.00039901,20]
[393678332,1762920639465,-500.0,0.00039901,20]
[393678333,1762920639474,-628.32578045,0.00039901,20]
[393678334,1762920639484,-500.0,0.00039901,7]
[393678335,1762920639493,-151.95087809,0.00039901,15]
[393678336,1762920639502,-1019.5405,0.00039902,2]
[393678337,1762920639513,-378.9405884,0.00039902,2]
[393678338,1762920639522,-500.0,0.00039902,20]
[393678339,1762920639532,-500.0,0.00039902,20]
[393678340,1762920639541,-500.0,0.00039902,7]
[393678341,1762920639551,-524.26,0.00039902,20]
[393678342,1762920639564,-608.59,0.00039902,20]
[393678344,1762920639575,-500.0,0.00039902,20]
[393678346,1762920639590,-500.0,0.00039902,20]
[393678347,1762920639603,-500.0,0.00039902,20]
[393678348,1762920639614,-500.0,0.00039902,20]
[393678349,1762920639624,-500.0,0.00039902,20]
[393678350,1762920639636,-553.87,0.00039902,20]
[393678351,1762920639648,-500.0,0.00039902,20]
[393678352,1762920639660,-520.96,0.00039902,20]
[393678353,1762920639672,-500.0,0.00039902,20]
[393678354,1762920639685,-500.0,0.00039902,20]
[393678355,1762920639698,-516.44479726,0.00039902,20]
[393678356,1762920639711,-500.0,0.00039902,20]
[393678357,1762920639723,-500.0,0.00039902,20]
[393678358,1762920639735,-500.0,0.00039902,120]
[393678359,1762920639746,-500.0,0.00039902,20]
[393678360,1762920639756,-500.0,0.00039902,20]
[393678361,1762920639766,-500.0,0.00039902,20]
[393678362,1762920639779,-500.0,0.00039902,7]
[393678363,1762920639792,-500.0,0.00039902,20]
[393678364,1762920639804,-500.0,0.00039902,20]
[393678365,1762920639816,-500.0,0.00039902,20]
[393678366,1762920639830,-500.0,0.00039902,20]
[393678367,1762920639844,-500.0,0.00039902,20]
[393678368,1762920639859,-500.0,0.00039902,20]
[393678369,1762920639871,-500.0,0.00039902,20]
[393678370,1762920639883,-611.11332087,0.00039902,20]